Workbook

Sheet Locke
A2: Locke In Your Success 2014 Profit Plan for website account | F2: Examples on website will be demonstrated with fluctuating capital amounts for demonstration purposes
F3: Trades are real time simulated trades. Simulated trades are believed to be represented as accurately as possible, however live results may have been different
F4: This spreadsheet is corrected to assume a $400,000 portfolio using a consistent trade size for the entire year
G5: This plan is shared as an example for educational purposes ONLY, it does not imply that the information stated is accurate nor that it is possible
B7: ACCOUNT | C7: PC | D7: PROFIT | F7: WINS | G7: PROFIT | H7: ANNUAL PROFIT | I7: Account Size
A8: STRATEGY | B8: ALLOCATION | C8: ALLOCATION | D8: TARGET | E8: MAX LOSS | F8: LOSSES | G8: (LOSS) | H8: (ON PLANNED CAPITAL) | I8: 400000
D9: 30% adj to 20%
D10: for reduced PT
A11: Bearish Butterfly | B11: 0.125 | C11: =B12/(B15+B18+B12+B21) -> 0.25 | D11: 0.2 | E11: 0.3 | F11: 9 | G11: =D11*F11 -> 1.8 | H11: =G11+G12 -> 0.9
B12: =B11*I8 -> 50000 | F12: 3 | G12: =E11*F12*-1 -> -0.9 | I12: =I8*B11*H11 -> 45000
A14: M3 Butterfly | B14: 0.125 | C14: =B15/(B12+B15+B18+B21) -> 0.25 | D14: 0.1 | E14: 0.1 | F14: 9 | G14: =D14*F14 -> 0.9 | H14: =G14+G15 -> 0.6
B15: =B14*I8 -> 50000 | F15: 3 | G15: =E14*F15*-1 -> -0.3 | I15: =I8*B14*H14 -> 30000
A17: ROCK | B17: 0.125 | C17: =B18/(B18+B15+B12+B21) -> 0.25 | D17: 0.2 | E17: 0.2 | F17: 9 | G17: =D17*F17 -> 1.8 | H17: =G17+G18 -> 1.2
B18: =I8*B17 -> 50000 | F18: 3 | G18: =E17*F18*-1 -> -0.6 | I18: =I8*B17*H17 -> 60000
A20: V Trade | B20: 0.125 | C20: =B21/(B18+B15+B12+B21) -> 0.25 | D20: 0.1 | E20: 0.1 | F20: 9 | G20: =D20*F20 -> 0.9 | H20: =G20+G21 -> 0.6
B21: 50000 | F21: 3 | G21: =E20*F21*-1 -> -0.3 | I21: =H20*B20*I8 -> 30000
A23: Reserve | B23: =1-(B11+B14+B17+B20) -> 0.5 | H23: 0
B24: =B23*I8 -> 200000 | I24: 0
A27: Totals | B27: =B11+B14+B17+B23+B20 -> 1
B28: =B12+B15+B18+B21+B24 -> 400000
H29: Estimated | I29: Actual YTD
E30: Annual Return on Planned Capital (Expected Capital Needed for Trades) | H30: =(C11*H11)+(C14*H14)+(C17*H17)+(H20*C20) -> 0.825 | I30: =(C11*N43)+(C14*N51)+(C17*N59)+(C20*N67) -> 0.94484
H31: =(B12+B15+B18+B21)*H30 -> 165000 | I31: =(B12+B15+B18+B21)*I30 -> 188968
E32: Annual Return Corrected for Reserve (Entire Account) | H32: =(B14+B11+B17+D34+B20)/B27*H30 -> 0.4125 | I32: =(B14+B11+B17+B20)/B27*I30 -> 0.47242
H33: =I8*H32 -> 165000 | I33: =I8*I32 -> 188968
B38: January | C38: Febraury | D38: March | E38: April | F38: May | G38: June | H38: July | I38: August | J38: September | K38: October | L38: November | M38: December | N38: Totals
A39: Bearish Butterfly
A41: Target Profit per Plan (%) | B41: 0.3 | C41: 0.3 | D41: 0.3 | E41: 0.3 | F41: 0.3 | G41: 0.3 | H41: 0.3 | I41: 0.3 | J41: 0.3 | K41: 0.3 | L41: 0.3 | M41: 0.3
A42: Max Loss per Plan (%) | B42: 0.3 | C42: 0.3 | D42: 0.3 | E42: 0.3 | F42: 0.3 | G42: 0.3 | H42: 0.3 | I42: 0.3 | J42: 0.3 | K42: 0.3 | L42: 0.3 | M42: 0.3
A43: Actual P/L on PC (%) | B43: 0.121 | C43: 0.264 | D43: -0.234 | E43: 0.286 | F43: 0.194 | G43: 0.137 | H43: 0.1 | I43: 0.108 | J43: 0.118 | K43: 0.136 | L43: 0.101 | M43: 0.131 | N43: =B43+C43+D43+E43+F43+G43+H43+I43+J43+K43+L43+M43 -> 1.462
A44: Wins | B44: 1 | C44: 1 | D44: 0 | E44: 1 | F44: 1 | G44: 1 | H44: 1 | I44: 1 | J44: 1 | K44: 1 | L44: 1 | M44: 1 | N44: =SUM(B44:M44) -> 11 | O44: Wins
A45: Losses | B45: 0 | C45: 0 | D45: 1 | E45: 0 | F45: 0 | G45: 0 | H45: 0 | I45: 0 | J45: 0 | K45: 0 | L45: 0 | M45: 0 | N45: =SUM(B45:M45) -> 1 | O45: Losses
A47: M3
A49: Target Profit per Plan (%) | B49: 0.1 | C49: 0.1 | D49: 0.1 | E49: 0.1 | F49: 0.1 | G49: 0.1 | H49: 0.1 | I49: 0.1 | J49: 0.1 | K49: 0.1 | L49: 0.1 | M49: 0.1
A50: Max Loss per Plan (%) | B50: 0.1 | C50: 0.1 | D50: 0.1 | E50: 0.1 | F50: 0.1 | G50: 0.1 | H50: 0.1 | I50: 0.1 | J50: 0.1 | K50: 0.1 | L50: 0.1 | M50: 0.1
A51: Actual P/L on PC (%) | B51: 0.058 | C51: 0.032 | D51: 0.103 | E51: 0.044 | F51: 0.114 | G51: 0.0534 | H51: 0.0871 | I51: 0.103 | J51: 0.0739 | K51: 0.119 | L51: 0.089 | M51: 0.0159 | N51: =B51+C51+D51+E51+F51+G51+H51+I51+J51+K51+L51+M51 -> 0.8923
A52: Wins | B52: 1 | C52: 1 | D52: 1 | E52: 1 | F52: 1 | G52: 1 | H52: 1 | I52: 1 | J52: 1 | K52: 1 | L52: 1 | M52: 1 | N52: =SUM(B52:M52) -> 12 | O52: Wins
A53: Losses | B53: 0 | C53: 0 | D53: 0 | E53: 0 | F53: 0 | G53: 0 | H53: 0 | I53: 0 | J53: 0 | K53: 0 | L53: 0 | M53: 0 | N53: =SUM(B53:M53) -> 0 | O53: Losses
A55: ROCK
A57: Target Profit per Plan (%) | B57: 0.2 | C57: 0.2 | D57: 0.2 | E57: 0.2 | F57: 0.2 | G57: 0.2 | H57: 0.2 | I57: 0.2 | J57: 0.2 | K57: 0.2 | L57: 0.2 | M57: 0.2
A58: Max Loss per Plan (%) | B58: 0.2 | C58: 0.2 | D58: 0.2 | E58: 0.2 | F58: 0.2 | G58: 0.2 | H58: 0.2 | I58: 0.2 | J58: 0.2 | K58: 0.2 | L58: 0.2 | M58: 0.2
A59: Actual P/L on PC (%) | B59: 0.127 | C59: 0.043 | D59: 0.174 | E59: 0.063 | F59: 0.103 | G59: 0.091 | H59: 0.104 | I59: 0.102 | J59: 0.0956 | K59: 0.05146 | L59: 0.2 | M59: 0.038 | N59: =B59+C59+D59+E59+F59+G59+H59+I59+J59+K59+L59+M59 -> 1.19206
A60: Wins | B60: 1 | C60: 1 | D60: 1 | E60: 1 | F60: 1 | G60: 1 | H60: 1 | I60: 1 | J60: 1 | K60: 1 | L60: 1 | M60: 1 | N60: =SUM(B60:M60) -> 12 | O60: Wins
A61: Losses | B61: 0 | C61: 0 | D61: 0 | E61: 0 | F61: 0 | G61: 0 | H61: 0 | I61: 0 | J61: 0 | K61: 0 | L61: 0 | M61: 0 | N61: =SUM(B61:M61) -> 0 | O61: Losses
A63: V-Trade
A65: Target Profit per Plan (%) | B65: 0.1 | C65: 0.1 | D65: 0.1 | E65: 0.1 | F65: 0.1 | G65: 0.1 | H65: 0.1 | I65: 0.1 | J65: 0.1 | K65: 0.1 | L65: 0.1 | M65: 0.1
A66: Max Loss per Plan (%) | B66: 0.1 | C66: 0.1 | D66: 0.1 | E66: 0.1 | F66: 0.1 | G66: 0.1 | H66: 0.1 | I66: 0.1 | J66: 0.1 | K66: 0.1 | L66: 0.1 | M66: 0.1
A67: Actual P/L on PC (%) | B67: 0.103 | C67: 0.039 | D67: -0.055 | E67: 0.035 | F67: 0.025 | G67: 0.053 | H67: -0.094 | I67: 0.013 | J67: 0.0656 | K67: 0.0233 | L67: -0.0059 | M67: 0.031 | N67: =B67+C67+D67+E67+F67+G67+H67+I67+J67+K67+L67+M67 -> 0.233
A68: Wins | B68: 1 | C68: 1 | D68: 0 | E68: 1 | F68: 1 | G68: 1 | H68: 0 | I68: 1 | J68: 1 | K68: 1 | L68: 0 | M68: 1 | N68: =SUM(B68:M68) -> 9 | O68: Wins
A69: Losses | B69: 0 | C69: 0 | D69: 1 | E69: 0 | F69: 0 | G69: 0 | H69: 1 | I69: 0 | J69: 0 | K69: 0 | L69: 1 | M69: 0 | N69: =SUM(B69:M69) -> 3 | O69: Losses
A71: Below is assuming PC for all trades are the same
A72: Combined Avg P/L on PC (%) | B72: =(B43+B51+B59+B67)/4 -> 0.10225 | C72: =(C43+C51+C59+C67)/4 -> 0.0945 | D72: =(D43+D51+D59+D67)/4 -> -0.003 | E72: 0.107 | F72: 0.109 | G72: 0.0836 | H72: 0.049275 | I72: 0.0815 | J72: 0.088275 | K72: 0.08244 | L72: 0.096025 | M72: 0.053975 | N72: =SUM(B72:M72) -> 0.94484
A73: Combined Wins | B73: =B44+B52+B60+B68 -> 4 | C73: =C44+C52+C60+C68 -> 4 | D73: 2 | E73: 4 | F73: 4 | G73: 4 | H73: 3 | I73: 4 | J73: 4 | K73: 4 | L73: 3 | M73: 4 | N73: 44 | O73: Wins
A74: Combined Losses | B74: =B45+B61+B69+B53 -> 0 | C74: =C45+C61+C69+C53 -> 0 | D74: 2 | E74: 0 | F74: 0 | G74: 0 | H74: 1 | I74: 0 | J74: 0 | K74: 0 | L74: 1 | M74: 0 | N74: 4 | O74: Losses
